bitfinex/quotes_ETHUSD_20241003
["timestamp","ask_amount","ask_price","bid_price","bid_amount"]
[1727942087358,3.37185,2372.6,2371.8,1.588]
[1727942087558,3.37235,2372.3,2371.8,1.588]
[1727942087754,3.3724,2372.2,2371.9,0.833406]
[1727942087995,3.37235,2372.3,2371.9,0.833406]
[1727942088686,3.3724,2372.2,2371.9,0.833406]
[1727942088901,3.37235,2372.3,2371.9,0.833406]
[1727942089296,6.74474,2372.3,2371.9,0.833406]
[1727942089498,6.74474,2372.3,2372.0,0.2421406]
[1727942089499,3.37235,2372.3,2372.0,0.2421406]
[1727942090134,6.74471,2372.3,2372.0,0.2421406]
[1727942090272,3.37246,2372.2,2372.0,0.2421406]
[1727942090602,3.37235,2372.3,2372.0,0.2421406]
[1727942091305,3.37233,2372.3,2372.0,0.2421406]
[1727942091608,3.37232,2372.3,2372.0,0.2421406]
[1727942092112,3.37206,2372.5,2372.0,0.2421406]
[1727942092293,3.37113,2373.1,2372.5,3.37194]
[1727942092461,3.37093,2373.3,2372.7,1.6345]
[1727942092659,3.37106,2373.2,2372.7,5.00618]
[1727942093105,3.37093,2373.3,2372.7,5.00618]
[1727942093106,6.74185,2373.3,2372.7,5.00618]
[1727942093307,3.371,2373.2,2372.8,0.5343374]
[1727942093904,3.37092,2373.3,2372.8,0.5343374]
[1727942094111,3.37064,2373.5,2372.8,0.5343374]
[1727942094405,3.3709,2373.3,2372.8,0.5343374]
[1727942094763,3.3709,2373.3,2372.8,3.9057474]
[1727942095011,3.3709,2373.3,2372.9,0.89118474]
[1727942095575,3.0,2373.4,2373.0,1.6593]
[1727942095778,3.37064,2373.5,2373.0,1.6593]
[1727942096018,3.37035,2373.7,2373.2,3.3709]
[1727942096216,3.37035,2373.7,2373.3,1.99639]
[1727942096724,3.37006,2373.9,2373.3,1.99639]
[1727942096929,3.37006,2373.9,2373.4,3.37061]
[1727942097282,3.36993,2374.0,2373.3,1.99639]
[1727942097530,3.37055,2373.5,2373.3,1.6593]
[1727942098023,3.36993,2374.0,2372.9,0.89118474]
[1727942098024,3.37069,2373.4,2372.9,0.89118474]
[1727942098322,3.371,2373.2,2373.0,1.605]
[1727942098496,3.37046,2373.6,2373.0,1.605]
[1727942098497,3.37092,2373.3,2373.0,1.605]
[1727942099424,3.37106,2373.2,2373.0,1.605]
[1727942099716,3.37106,2373.2,2372.7,1.5747]
[1727942099717,3.37111,2373.1,2372.7,1.5747]
[1727942099878,3.37126,2373.0,2372.7,2.1030634]
[1727942100078,3.37126,2373.0,2372.7,1.5747]
[1727942100479,3.37098,2373.2,2372.7,1.5747]
[1727942100680,3.37113,2373.1,2372.7,1.5747]
[1727942100935,3.37098,2373.2,2372.7,1.5747]
[1727942101229,3.37089,2373.3,2372.7,1.5747]
[1727942101379,3.37122,2373.1,2372.7,1.5747]
[1727942101580,3.37122,2373.1,2372.7,2.1030834]
[1727942101827,3.37134,2373.0,2372.7,2.1030834]
[1727942101985,3.37107,2373.2,2372.7,1.5747]
[1727942102580,3.37076,2373.4,2372.8,3.37149]
[1727942102581,6.74153,2373.4,2372.8,3.37149]
[1727942102985,3.37076,2373.4,2372.8,3.37149]
[1727942103207,3.37098,2373.2,2372.7,4.94626]
[1727942103415,3.37098,2373.2,2372.7,5.778077]
[1727942104234,3.37111,2373.1,2372.7,5.778077]
[1727942104616,3.37098,2373.2,2372.7,5.778077]
[1727942104816,3.37078,2373.4,2372.8,3.37145]
[1727942105062,3.37092,2373.3,2372.7,9.149647]
[1727942105210,3.37092,2373.3,2372.8,0.9149647]
[1727942105635,3.37097,2373.2,2372.8,0.9149647]
[1727942107110,1.7070431,2373.6,2372.7,1.5747]
[1727942107450,3.37197,2372.5,2372.1,1.5008]
[1727942107660,3.37224,2372.4,2372.1,1.5008]
[1727942107826,3.37197,2372.5,2372.1,1.988153]
[1727942108155,1.7070431,2373.2,2372.2,1.5008]
[1727942108359,1.7070431,2373.5,2372.7,1.5008]
[1727942108654,3.3712,2373.1,2372.7,1.988055]
[1727942110115,6.74189,2373.3,2372.7,5.359685]
[1727942110362,3.37119,2373.1,2372.7,1.988055]
[1727942110544,6.74237,2373.1,2372.7,1.988055]
[1727942110728,3.37118,2373.1,2372.7,1.988055]
[1727942110927,3.37141,2372.9,2372.7,1.5008]
[1727942111129,3.37118,2373.1,2372.7,1.5008]
[1727942111949,3.37128,2373.0,2372.7,1.5008]
[1727942112319,3.3715,2372.9,2372.7,1.5008]
[1727942112931,3.37128,2373.0,2372.7,1.5008]
[1727942114666,3.37106,2373.2,2372.7,1.988064]
[1727942114962,3.37106,2373.2,2372.7,5.359734]
[1727942115165,6.74215,2373.2,2372.7,5.359734]
[1727942115372,3.37106,2373.2,2372.7,5.359734]
[1727942115672,3.37106,2373.2,2372.7,1.988064]
[1727942115834,3.37106,2373.2,2372.8,0.5359784]
[1727942116261,3.37127,2373.0,2372.8,0.5359784]
[1727942116421,3.37142,2372.9,2372.7,1.5008]
[1727942116620,1.7070431,2373.5,2372.7,1.5008]
[1727942116621,3.37115,2373.1,2372.7,1.5008]
[1727942117118,3.37083,2373.3,2372.8,3.37152]
[1727942117320,3.37077,2373.4,2373.0,1.5858]
[1727942117562,3.37085,2373.3,2373.0,1.5858]
[1727942118238,3.371,2373.2,2373.0,1.5858]
[1727942118561,6.74208,2373.2,2373.0,1.5858]
[1727942118934,3.371,2373.2,2373.0,1.5858]
[1727942120120,3.37111,2373.1,2373.0,1.5858]
[1727942120740,3.37121,2373.1,2372.6,1.6207]
[1727942120966,3.37121,2373.1,2372.6,2.45717]
[1727942121169,3.37121,2373.1,2372.6,5.82895]
[1727942121323,3.37121,2373.1,2372.6,2.45717]
[1727942122128,3.37156,2372.8,2372.6,1.6207]
[1727942123173,1.5984,2373.0,2372.4,1.5049]
[1727942123379,3.37172,2372.7,2372.1,1.5049]
[1727942123692,6.74990696,2373.0,2371.8,1.5049]
[1727942123693,3.37239,2372.2,2371.8,1.5049]
[1727942123833,6.74486,2372.2,2371.9,0.487789]
[1727942124180,3.37239,2372.2,2371.9,0.487789]
[1727942124477,1.5984,2372.5,2371.9,0.487789]
[1727942124774,1.5984,2372.5,2371.8,1.5049]
[1727942124975,1.5984,2372.5,2371.8,4.87778]
[1727942124976,3.37224,2372.4,2371.8,4.87778]
[1727942125288,3.37151,2372.9,2372.4,1.5518]
[1727942125584,3.0,2373.0,2372.5,3.3719]
[1727942125745,3.37118,2373.1,2372.6,4.201377]
[1727942125928,3.37092,2373.3,2372.8,4.98118]
[1727942126487,3.37106,2373.2,2372.8,1.6097]
[1727942126633,3.3714,2372.9,2372.6,1.6479]
[1727942126828,3.37199,2372.5,2372.0,1.6479]
[1727942127033,3.37236,2372.3,2372.1,0.58948069]
[1727942127235,3.37275,2372.0,2371.7,3.40615371]
[1727942127458,3.37285,2371.9,2371.7,3.40615371]
[1727942127676,3.37275,2372.0,2371.7,1.6578]
[1727942128049,3.3729,2371.9,2371.7,1.6578]
[1727942128429,3.37275,2372.0,2371.7,1.6578]
[1727942128836,3.37284,2371.9,2371.7,1.6578]
[1727942129044,3.37284,2371.9,2371.3,3.37357]
[1727942129045,3.37275,2372.0,2371.5,1.5977]
[1727942129397,3.37296,2371.8,2371.5,2.094827]
[1727942129753,3.37275,2372.0,2371.5,2.094827]
[1727942130340,3.37284,2371.9,2371.5,2.094827]
[1727942130669,3.3731,2371.7,2371.5,1.5977]
[1727942130866,3.37325,2371.6,2371.1,1.5941]
[1727942131091,3.37325,2371.6,2371.1,4.96804]
[1727942132458,3.3734,2371.5,2371.1,1.5941]
[1727942132658,3.37325,2371.6,2371.1,2.090909]
[1727942133401,3.37325,2371.6,2371.1,5.464849]
[1727942133551,3.37325,2371.6,2371.1,2.090909]
[1727942134060,3.37325,2371.6,2371.1,5.464859]
[1727942134565,3.37325,2371.6,2371.2,0.8838849]
[1727942135065,6.74659,2371.6,2371.2,0.8838849]
[1727942135266,1.6512,2371.8,2370.2,0.87417685]
[1727942135512,3.37442,2370.8,2370.5,1.5007]
[1727942136016,3.37442,2370.8,2370.1,1.6333]
[1727942136180,3.37476,2370.6,2370.2,0.500874]
[1727942136379,3.37449,2370.8,2370.2,0.500874]
[1727942136563,6.7481,2371.1,2370.4,3.37487]
[1727942136756,6.7481,2371.1,2370.5,4.9135]
[1727942136757,3.37403,2371.1,2370.5,4.9135]
[1727942136971,11.36374,2371.3,2370.6,4.203477]
[1727942137170,7.98994,2371.3,2370.6,4.203477]
[1727942137405,3.37405,2371.1,2370.6,0.828837]
[1727942137615,3.37405,2371.1,2370.7,0.2367537]
[1727942140261,3.37411,2371.0,2370.7,0.2367537]
[1727942140461,3.37405,2371.1,2370.7,0.2367537]
[1727942140711,3.3741,2371.0,2370.7,0.2367537]
[1727942141062,3.37424,2370.9,2370.7,0.2367537]
[1727942141492,3.37424,2370.9,2370.5,1.5387]
[1727942141903,3.37449,2370.8,2370.5,1.5387]
[1727942142239,3.37453,2370.7,2370.5,1.5387]
[1727942143222,3.37424,2370.9,2370.5,1.5387]
[1727942143519,3.3744,2370.8,2370.5,1.5387]
[1727942143692,3.37424,2370.9,2370.5,2.030078]
[1727942143895,3.37424,2370.9,2370.5,1.5387]
[1727942144096,6.74861,2370.9,2370.5,1.5387]
[1727942144294,3.37424,2370.9,2370.5,1.5387]
[1727942145593,3.37461,2370.7,2370.2,4.99861]
[1727942145779,3.37461,2370.7,2370.3,0.337511]
[1727942146803,3.37434,2370.9,2370.3,0.337511]
[1727942147218,3.37411,2371.0,2370.5,1.6235]
[1727942147520,3.37425,2370.9,2370.5,1.6235]
[1727942148090,6.74861,2370.9,2370.5,1.6235]
[1727942148405,3.37425,2370.9,2370.6,0.499835]
[1727942148607,3.37405,2371.1,2370.6,0.499835]
[1727942148923,3.37386,2371.2,2370.6,3.874465]
[1727942149228,6.74804,2371.1,2370.6,3.874415]
[1727942149413,3.37411,2371.0,2370.7,0.5497965]
[1727942149608,3.37425,2370.9,2370.7,0.5497965]
[1727942149809,3.37425,2370.9,2370.6,0.499835]
[1727942150341,3.37397,2371.1,2370.6,0.499835]
[1727942150824,3.37411,2371.0,2370.6,0.499835]
[1727942151388,3.37397,2371.1,2370.6,0.499835]
[1727942151896,3.37397,2371.1,2370.6,3.874465]
[1727942152099,3.37397,2371.1,2370.7,0.8872695]
[1727942152609,3.3739,2371.2,2370.7,4.2617695]
[1727942153384,3.3739,2371.2,2370.7,4.2617195]
[1727942153685,7.39,2371.7,2370.7,4.2617195]
[1727942153686,3.37346,2371.5,2371.0,3.3741]
[1727942153888,3.37354,2371.4,2371.1,0.33741]
[1727942154099,3.37346,2371.5,2370.9,3.37415]
[1727942154299,3.37354,2371.4,2370.9,3.37424]
[1727942156646,3.37346,2371.5,2371.0,3.3741]
[1727942156853,3.37346,2371.5,2370.8,5.00156]
[1727942156854,3.37362,2371.4,2370.8,5.00156]
[1727942157005,3.37362,2371.4,2370.9,0.58888295]
[1727942157207,3.37346,2371.5,2370.9,3.96301295]
[1727942158220,3.37353,2371.4,2370.9,3.96301295]
[1727942158752,3.37399,2371.1,2370.7,2.4425695]
[1727942159052,3.37384,2371.2,2370.7,4.92982]
[1727942159905,3.37384,2371.2,2370.7,1.5553]
[1727942160255,3.37349,2371.5,2370.7,4.92973]
[1727942160557,6.74696,2371.5,2371.0,3.37409]
[1727942160850,6.74695,2371.5,2371.0,3.37409]
[1727942161057,3.37347,2371.5,2371.0,3.37409]
[1727942161352,3.3739,2371.2,2370.9,1.623]
[1727942162062,3.3735,2371.5,2370.9,1.8345973]
[1727942162211,3.3735,2371.5,2370.9,5.2087173]
[1727942162808,3.37357,2371.4,2370.9,8.5828873]
[1727942163151,3.3735,2371.5,2370.9,8.5828873]
[1727942163311,3.3735,2371.5,2371.0,0.85828873]
[1727942163645,3.37347,2371.5,2371.0,0.85828873]
[1727942163847,3.37354,2371.4,2371.0,0.85828873]
[1727942164235,3.37377,2371.3,2371.0,0.85828873]
[1727942164558,3.37377,2371.3,2370.9,1.8345973]
[1727942164908,6.74716,2371.4,2370.9,5.2088373]
[1727942165347,1.5889,2371.8,2370.9,1.8345973]
[1727942165536,3.37364,2371.4,2370.9,1.8345973]
[1727942165750,3.37364,2371.4,2371.0,0.52089073]
[1727942166054,4.96194,2371.8,2371.1,3.37394]
[1727942166055,3.37325,2371.6,2371.1,3.37394]
[1727942167052,3.37339,2371.5,2371.1,3.37394]
[1727942167615,3.37339,2371.5,2371.0,0.52089073]
[1727942167962,3.37339,2371.5,2371.0,3.89498073]
[1727942168120,3.37339,2371.5,2371.1,0.9103718]
[1727942168322,3.37368,2371.3,2371.1,0.9103718]
[1727942168532,3.37353,2371.4,2371.1,0.9103718]
[1727942170815,4.97749,2371.3,2370.6,1.5062]
[1727942171019,3.37435,2370.9,2370.6,1.5062]
[1727942171250,3.37453,2370.7,2370.2,1.5013]
[1727942171517,1.5272,2370.8,2369.8,1.5013]
[1727942171751,6.74954,2370.6,2370.0,3.3754]
[1727942171911,6.74954,2370.6,2370.1,0.675092]
[1727942172261,3.37486,2370.5,2370.1,0.675092]
[1727942173663,3.37434,2370.9,2370.2,1.635]
[1727942173810,3.37417,2371.0,2370.6,1.635]
[1727942174015,3.3739,2371.2,2370.6,5.00962]
[1727942174215,6.74781,2371.2,2370.6,5.00962]
[1727942174446,3.3739,2371.2,2370.6,5.00962]
[1727942174648,3.3739,2371.2,2370.7,0.838436]
[1727942174832,3.37363,2371.4,2370.7,4.212866]
[1727942175037,3.37363,2371.4,2370.8,1.635]
[1727942175489,3.37363,2371.4,2370.9,3.37423]
[1727942175864,3.37361,2371.4,2370.9,3.37423]
[1727942176026,3.37361,2371.4,2371.0,0.500923]
[1727942176229,5.0801031,2371.8,2371.1,1.6125]
[1727942176425,3.37318,2371.7,2371.1,4.98636]
[1727942176616,3.37321,2371.7,2371.2,0.498636]
[1727942176819,1.7070431,2371.9,2371.4,3.37345]
[1727942177033,3.37298,2371.8,2371.3,1.6125]
[1727942177266,3.37326,2371.6,2371.3,1.6125]
[1727942177468,3.37326,2371.6,2371.4,0.2111136]
[1727942177815,3.37326,2371.6,2371.3,1.6125]
[1727942178021,6.74617,2371.8,2371.3,1.6125]
[1727942178273,3.37319,2371.7,2371.3,1.6125]
[1727942178434,3.37307,2371.8,2371.3,1.6125]
[1727942178641,3.37255,2372.1,2371.5,3.3733]
[1727942178869,1.7070431,2372.3,2371.7,1.6564]
[1727942179068,3.37292,2371.9,2371.7,1.6564]
[1727942179425,3.37296,2371.8,2371.4,1.6414]
[1727942179730,3.37292,2371.9,2371.4,1.6414]
[1727942179731,3.37326,2371.6,2371.4,1.6414]
[1727942180074,1.6568,2371.9,2371.1,1.6414]
[1727942180075,3.37354,2371.4,2371.1,1.6414]
[1727942180272,3.37349,2371.5,2370.8,1.6414]
[1727942180495,3.37349,2371.5,2370.3,3.37501]
[1727942180496,3.37442,2370.8,2370.4,1.6414]
[1727942180780,3.37417,2371.0,2370.5,0.501641]
[1727942180923,3.37417,2371.0,2370.5,3.876451]
[1727942181125,3.37417,2371.0,2370.5,3.876361]
[1727942181338,3.37417,2371.0,2370.6,0.5517761]
[1727942181339,3.37426,2370.9,2370.6,0.5517761]
[1727942181574,3.37417,2371.0,2370.5,3.876431]
[1727942181955,3.37417,2371.0,2370.5,3.876381]
[1727942182532,6.45239575,2371.4,2370.7,3.37443]
[1727942182533,8.4543531,2371.4,2370.7,3.37443]
[1727942182726,8.4543531,2371.4,2370.8,3.37437]
[1727942182727,3.37369,2371.3,2370.8,3.37437]
[1727942182925,3.37369,2371.3,2370.8,0.78764]
[1727942183171,3.37382,2371.2,2370.8,0.78764]
[1727942183472,3.37364,2371.4,2370.9,3.37414]
[1727942183620,6.37333,2371.6,2370.9,1.1276]
[1727942183825,6.37333,2371.6,2371.0,3.903029]
[1727942184325,5.0800931,2371.8,2371.1,1.0874]
[1727942184521,3.37278,2372.0,2371.5,1.0874]
[1727942184522,1.7070431,2372.0,2371.5,1.0874]
[1727942184755,3.37283,2371.9,2371.6,0.783424]
[1727942186776,3.37248,2372.2,2371.6,4.156574]
[1727942186927,3.37248,2372.2,2371.7,3.37299]
[1727942187121,6.74444,2372.4,2371.8,3.37295]
[1727942187361,3.37221,2372.4,2371.9,0.337295]
[1727942187541,3.37247,2372.2,2371.9,0.337295]
[1727942187727,6.74494,2372.2,2371.6,3.37315]
[1727942188127,3.37247,2372.2,2371.6,3.37315]
[1727942188559,3.37247,2372.2,2371.6,6.74632]
[1727942188871,6.74496,2372.2,2371.6,6.74632]
[1727942189055,6.74496,2372.2,2371.7,0.783372]
[1727942189056,3.37247,2372.2,2371.7,0.783372]
[1727942189257,6.74495,2372.2,2371.7,0.783372]
[1727942189458,3.37281,2372.0,2371.7,0.783372]
[1727942189627,4.27135,2371.9,2371.1,1.1314]
[1727942189968,3.37349,2371.5,2371.1,1.1314]
[1727942190175,3.37353,2371.4,2371.1,1.1314]
[1727942190338,3.37349,2371.5,2371.1,1.581952]
[1727942190583,3.37326,2371.6,2371.1,4.955902]
[1727942191270,3.37319,2371.7,2371.2,3.37378]
[1727942191565,1.7070431,2372.1,2371.6,3.37311]
[1727942191566,3.37263,2372.1,2371.6,3.37311]
[1727942191770,3.37235,2372.3,2371.8,3.37291]
[1727942191974,3.37235,2372.3,2371.9,1.1314]
[1727942192154,3.37255,2372.1,2371.9,1.1314]
[1727942193946,3.37234,2372.3,2371.9,1.1314]
[1727942194129,3.37205,2372.5,2371.9,1.1314]
[1727942194326,3.37205,2372.5,2371.9,4.954633]
[1727942194327,3.37212,2372.4,2371.9,4.954633]
[1727942194540,3.37212,2372.4,2371.9,1.581823]
[1727942194944,3.37229,2372.3,2371.9,1.581823]
[1727942195140,3.37243,2372.2,2371.9,1.581823]
[1727942195346,3.37243,2372.2,2371.9,1.1314]
[1727942195859,3.37229,2372.3,2371.9,1.1314]
[1727942196056,3.37251,2372.2,2371.9,1.1314]
[1727942197143,3.37258,2372.1,2371.9,1.1314]
[1727942197374,3.37251,2372.2,2371.9,1.1314]
[1727942197871,3.37296,2371.8,2371.6,1.1217]
[1727942201543,6.74552,2372.0,2371.6,1.1217]
[1727942201753,3.37292,2371.9,2371.6,1.1217]
[1727942201976,3.0,2372.1,2371.6,1.1217]
[1727942202182,2.6055431,2372.3,2371.3,1.0605]
[1727942202183,3.37346,2371.5,2371.3,1.0605]
[1727942202550,6.74642,2371.7,2371.3,1.0605]
[1727942202756,3.37325,2371.6,2371.3,1.0605]
[1727942203251,3.37319,2371.7,2371.3,1.503945]
[1727942203452,3.0,2371.8,2371.3,1.503945]
[1727942203756,6.37305,2371.8,2371.3,1.503945]
[1727942203956,3.0,2371.8,2371.3,4.877495]
[1727942204166,3.0,2371.8,2371.4,0.4877495]
[1727942205056,6.373,2371.8,2371.4,0.4877495]
[1727942205500,3.37288,2371.9,2371.4,3.8611795]
[1727942205703,3.37262,2372.1,2371.4,0.4877495]
[1727942205999,6.74461,2372.3,2371.8,1.1538]
[1727942206166,3.37243,2372.2,2371.8,1.1538]
[1727942206366,3.37225,2372.3,2371.8,4.52674]
[1727942206694,6.74458,2372.3,2371.8,4.52674]
[1727942206895,6.74458,2372.3,2371.9,0.789973]
[1727942206896,3.3724,2372.2,2371.9,0.789973]
[1727942207394,3.37225,2372.3,2371.9,0.789973]
[1727942207603,3.37244,2372.2,2371.9,0.789973]
[1727942210356,6.7452,2372.1,2371.9,0.789973]
[1727942210557,6.7452,2372.1,2371.8,1.1538]
[1727942210884,3.37255,2372.1,2371.8,1.1538]
[1727942212403,6.74517,2372.1,2371.8,1.1538]
[1727942212606,3.37282,2371.9,2371.8,1.1538]
[1727942212803,6.74664,2371.6,2371.2,1.0487]
[1727942212986,6.74664,2371.6,2371.2,1.490967]
[1727942212987,3.37325,2371.6,2371.2,1.490967]
[1727942213804,6.74662,2371.6,2371.2,1.490967]
[1727942214002,3.3734,2371.5,2371.2,1.490967]
[1727942214361,3.37325,2371.6,2371.2,1.490967]
[1727942214571,6.74661,2371.6,2371.2,1.490967]
[1727942214901,0.8976,2371.8,2371.2,1.490967]
[1727942214902,3.37353,2371.5,2371.2,1.490967]
[1727942215106,3.3736,2371.4,2371.2,1.0487]
[1727942215689,3.37353,2371.5,2371.2,1.0487]
[1727942219093,5.0797631,2372.0,2371.2,1.490965]
[1727942219094,3.37293,2371.9,2371.2,1.490965]
[1727942219310,3.37303,2371.8,2371.3,3.37354]
[1727942219879,3.37293,2371.9,2371.3,3.37354]
[1727942220078,3.37293,2371.9,2371.4,3.3734]
[1727942220285,3.37293,2371.9,2371.5,0.674694]
[1727942221014,3.37296,2371.8,2371.5,0.674694]
[1727942223111,3.37312,2371.7,2371.2,4.42242]
[1727942223296,5.0797931,2372.0,2371.2,1.0487]
[1727942223487,3.37358,2371.4,2371.2,1.0487]
[1727942223815,3.37341,2371.5,2370.9,3.37412]
[1727942223816,3.37341,2371.5,2371.0,4.45189]
[1727942224027,3.37341,2371.5,2371.1,0.782601]
[1727942224189,3.37341,2371.5,2371.1,4.156551]
[1727942224581,6.74689,2371.5,2371.1,0.782601]
[1727942224783,3.37341,2371.5,2371.1,0.782601]
[1727942225614,6.74688,2371.5,2371.1,0.782601]
[1727942225783,3.37341,2371.5,2371.1,0.782601]
[1727942225981,0.8976,2371.6,2371.1,0.782601]
[1727942226234,1.7070431,2371.9,2371.5,3.37327]
[1727942226382,10.76262,2372.1,2371.5,3.37327]
[1727942226583,3.37268,2372.0,2371.5,3.37327]
[1727942226783,3.37268,2372.0,2371.5,6.74658]
[1727942227233,3.37262,2372.1,2371.5,6.74658]
[1727942227234,3.37262,2372.1,2371.6,3.37322]
[1727942227394,3.37262,2372.1,2371.7,0.674649]
[1727942227783,3.0,2372.2,2371.7,1.786049]
[1727942228002,5.0793731,2372.3,2371.8,3.37284]
[1727942228225,3.37233,2372.3,2371.8,3.37284]
[1727942228526,3.37233,2372.3,2371.9,0.5158889]
[1727942229114,6.74468,2372.3,2371.7,1.1114]
[1727942229314,3.37239,2372.2,2371.7,4.48444]
[1727942230926,3.37233,2372.3,2371.7,4.48444]
[1727942231226,3.37233,2372.3,2371.8,4.158709]
[1727942231429,5.0793731,2372.3,2371.8,4.158709]
[1727942231641,2.180162,2372.4,2371.9,1.0784]
[1727942231642,1.7070431,2372.4,2371.9,1.0784]
[1727942231962,1.7070431,2372.6,2372.2,3.37238]
[1727942232156,5.0785831,2372.8,2372.3,3.37224]
[1727942232506,3.3717,2372.7,2372.2,6.74469]
[1727942232752,6.74347,2372.7,2372.3,0.782309]
[1727942233258,6.74349,2372.7,2372.3,0.782309]
[1727942233828,3.3717,2372.7,2372.3,0.782309]
[1727942234362,6.74348,2372.7,2372.3,0.782309]
[1727942234660,3.3719,2372.6,2372.3,0.782309]
[1727942235011,3.37263,2372.1,2371.6,3.37315]
[1727942235210,1.7070431,2372.7,2371.5,1.139]
[1727942235211,3.37289,2371.9,2371.5,1.139]
[1727942235456,3.37306,2371.8,2371.5,1.139]
[1727942235606,3.37325,2371.6,2371.1,1.0575]
[1727942235811,3.37332,2371.6,2371.1,4.96199768]
[1727942236061,3.37293,2371.9,2371.3,3.37358]
[1727942236262,3.37293,2371.9,2371.5,1.0575]
[1727942236553,3.37311,2371.7,2371.5,1.0575]
[1727942237416,3.37349,2371.5,2371.2,1.1086]
[1727942238617,6.74697,2371.5,2371.2,1.1086]
[1727942238814,3.37348,2371.5,2371.2,1.1086]
[1727942240415,6.74697,2371.5,2371.2,1.1086]
[1727942240918,3.37348,2371.5,2371.2,1.1086]
[1727942241118,6.74695,2371.5,2371.2,1.1086]
[1727942241444,3.37347,2371.5,2371.2,1.1086]
[1727942241757,6.747,2371.5,2371.2,1.1086]
[1727942242057,3.37347,2371.5,2371.2,1.1086]
[1727942242362,3.37347,2371.5,2371.2,1.556862]
[1727942242657,3.37347,2371.5,2371.2,1.1086]
[1727942242816,3.37347,2371.5,2371.0,1.0493]
[1727942242817,3.37367,2371.3,2371.0,1.0493]
[1727942243249,3.37347,2371.5,2371.0,4.42339]
[1727942243558,3.37356,2371.4,2371.0,4.42339]
[1727942243718,3.37356,2371.4,2371.1,0.442339]
[1727942243914,3.37347,2371.5,2371.1,0.442339]
[1727942244167,3.37356,2371.4,2371.1,0.442339]
[1727942244647,3.37347,2371.5,2371.1,0.442339]
[1727942244814,3.37347,2371.5,2371.0,4.42339]
[1727942245015,3.3736,2371.4,2371.0,1.0493]
[1727942246343,3.37404,2371.1,2370.6,3.37453]
[1727942246547,3.37439,2370.8,2370.4,1.0937]
[1727942246824,3.37411,2371.0,2370.4,1.87809]
[1727942247022,1.7070431,2371.4,2370.8,3.37428]
[1727942247023,5.0806831,2371.4,2370.8,3.37428]
[1727942247241,3.3734,2371.5,2371.0,3.37403]
[1727942248450,10.39,2371.7,2371.0,3.37403]
[1727942248451,10.39,2371.7,2371.0,0.674832]
[1727942248648,6.74727,2371.4,2371.0,0.674832]
[1727942248852,3.37362,2371.4,2371.0,0.674832]
[1727942250066,6.74724,2371.4,2371.0,0.674832]
[1727942250562,3.37378,2371.3,2371.0,0.674832]
[1727942250972,3.37362,2371.4,2370.7,1.0949]
[1727942250973,3.37421,2371.0,2370.7,1.0949]
[1727942251123,0.8965,2371.4,2370.3,2.80287252]
[1727942251124,9.17680252,2371.2,2370.3,1.0936]
[1727942251329,6.37377,2371.3,2370.7,3.37451]
[1727942251669,10.76349,2371.5,2370.9,3.37423]
[1727942251886,3.37358,2371.4,2370.9,3.37423]
[1727942252029,3.37349,2371.5,2371.0,0.443263]
[1727942252030,3.37369,2371.3,2371.0,0.443263]
[1727942252227,3.37369,2371.3,2370.8,4.43274]
[1727942252450,3.37369,2371.3,2370.9,3.37423]
[1727942252930,6.37325,2371.6,2371.0,1.0753]
[1727942253135,3.3734,2371.5,2371.1,3.37395]
[1727942253571,3.3732,2371.7,2371.1,3.37387]
[1727942253785,3.3732,2371.7,2371.2,4.818497]
[1727942254079,3.3732,2371.7,2371.2,1.444687]
[1727942254231,6.74638,2371.7,2371.2,1.444687]
[1727942254433,3.37326,2371.6,2371.2,1.444687]
[1727942255820,6.74637,2371.7,2371.2,4.818497]
[1727942256117,6.74637,2371.7,2371.3,0.8192367]
[1727942256407,3.37339,2371.5,2371.2,1.444687]
[1727942256610,3.37339,2371.5,2371.2,1.1073]
[1727942258421,3.37328,2371.6,2371.2,1.1073]
[1727942258763,3.37328,2371.6,2371.2,1.555439]
[1727942259510,1.7070431,2371.9,2371.2,1.555439]
[1727942259511,5.0799131,2371.9,2371.2,1.555439]
[1727942259700,3.37299,2371.8,2371.3,3.37356]
[1727942260512,3.37287,2371.9,2371.2,4.48111]
[1727942260513,3.37317,2371.7,2371.2,4.48111]
[1727942260812,3.37296,2371.8,2371.3,3.37355]
[1727942260972,3.37296,2371.8,2371.4,0.785466]
[1727942261172,3.37296,2371.8,2371.4,4.158966]
[1727942261379,3.37296,2371.8,2371.4,0.785466]
[1727942262182,1.7070431,2372.1,2371.6,3.37313]
[1727942262413,1.7070431,2372.2,2372.0,1.1371]
[1727942262724,1.7070431,2372.5,2372.1,3.37245]
[1727942262886,3.88367125,2372.6,2372.1,3.37245]
[1727942263088,3.37197,2372.5,2372.2,1.1371]
[1727942263269,12.4688531,2372.7,2372.2,1.1371]
[1727942264912,3.37206,2372.5,2372.2,1.1371]
[1727942265517,3.37149,2372.9,2372.3,3.37216]
[1727942265723,3.37176,2372.7,2372.2,4.960347]
[1727942265938,3.37149,2372.9,2372.4,3.3721]
[1727942266092,3.37148,2372.9,2372.4,3.3721]
[1727942266526,3.37157,2372.8,2372.2,4.960337]
[1727942266688,3.37147,2372.9,2372.4,3.37209]
[1727942267067,3.37147,2372.9,2372.3,0.4960337]
[1727942267068,3.37147,2372.9,2372.5,1.0601]
[1727942267730,2.80287252,2373.0,2372.5,1.0601]
[1727942268018,2.80287252,2372.6,2372.2,1.0766]
[1727942268228,3.3728,2372.0,2371.6,1.0766]
[1727942268373,3.37283,2371.9,2371.6,1.0766]